bitfinex-derivatives/quotes_SOLF0:USTF0_20250720
["timestamp","ask_amount","ask_price","bid_price","bid_amount"]
[1753052400316,8.6649,180.58,180.57,3.13]
[1753052400611,5.5349,180.58,180.57,3.13]
[1753052400815,8.6649,180.58,180.57,3.13]
[1753052401018,2.12494118,180.72,180.56,105.5]
[1753052401019,8.665,180.57,180.56,105.5]
[1753052401214,3.13,180.57,180.51,3.13]
[1753052401420,3.13,180.56,180.53,105.48]
[1753052402215,8.6659,180.54,180.53,105.48]
[1753052402421,8.6659,180.54,180.53,108.61]
[1753052402617,8.70291853,180.56,180.53,105.48]
[1753052402923,3.16751853,180.56,180.55,3.13]
[1753052403124,5.5356,180.55,180.54,105.5]
[1753052403318,5.25494118,180.55,180.47,2.12494118]
[1753052403619,3.13,180.54,180.5,3.13]
[1753052404018,3.13,180.54,180.48,108.63]
[1753052404322,3.13,180.52,180.48,108.63]
[1753052404812,5.5375,180.49,180.48,108.63]
[1753052405016,8.6675,180.49,180.48,105.5]
[1753052405215,3.13,180.53,180.49,3.13]
[1753052405420,8.6672,180.5,180.49,3.13]
[1753052405622,8.70536928,180.5,180.49,3.13]
[1753052405913,8.6675,180.49,180.48,105.5]
[1753052406317,5.5384,180.46,180.45,3.13]
[1753052406524,8.6684,180.46,180.45,3.13]
[1753052406725,3.13,180.46,180.45,3.13]
[1753052407020,3.13,180.45,180.44,109.17]
[1753052408726,8.6687,180.45,180.44,109.17]
[1753052409137,8.6687,180.45,180.44,106.04]
[1753052409728,8.6687,180.45,180.42,3.13]
[1753052409935,3.13,180.43,180.42,3.13]
[1753052410632,3.13,180.44,180.43,3.13]
[1753052411433,3.13,180.43,180.42,3.13]
[1753052411638,3.13,180.44,180.43,3.13]
[1753052411835,3.13,180.46,180.43,3.13]
[1753052412038,11.0708,180.56,180.43,3.13]
[1753052412039,3.13,180.49,180.43,3.13]
[1753052412230,3.13,180.51,180.47,3.13]
[1753052412435,3.13,180.51,180.5,3.13]
[1753052413236,3.13,180.56,180.47,106.14]
[1753052413537,3.13,180.54,180.48,3.13]
[1753052413738,3.13,180.52,180.47,106.26]
[1753052413932,3.13,180.5,180.47,106.26]
[1753052414131,8.668,180.48,180.47,106.26]
[1753052415235,5.5387,180.45,180.43,109.45]
[1753052415534,3.13,180.48,180.46,3.13]
[1753052415733,3.13,180.47,180.46,3.13]
[1753052416034,3.13,180.45,180.44,3.13]
[1753052416429,8.6687,180.45,180.44,3.13]
[1753052416740,2.12494118,180.51,180.44,3.13]
[1753052416940,3.13,180.5,180.44,3.13]
[1753052417137,5.5381,180.47,180.45,3.13]
[1753052417640,8.6681,180.47,180.46,3.13]
[1753052418138,5.5381,180.47,180.46,3.13]
[1753052418738,3.13,180.48,180.43,108.44494118]
[1753052418939,3.13,180.48,180.47,3.13]
[1753052419139,8.6678,180.48,180.47,3.13]
[1753052419340,3.13,180.48,180.45,3.13]
[1753052419541,3.13,180.47,180.46,3.13]
[1753052420132,8.6681,180.47,180.46,3.13]
[1753052420338,3.13,180.46,180.44,3.13]
[1753052420538,3.13,180.46,180.45,3.13]
[1753052420842,3.13,180.5,180.45,3.13]
[1753052421240,3.13,180.5,180.46,3.13]
[1753052421837,3.13,180.5,180.47,3.13]
[1753052422737,8.668,180.48,180.47,3.13]
[1753052424041,5.5385,180.46,180.44,3.13]
[1753052424348,8.6685,180.46,180.45,3.13]
[1753052425047,3.13,180.44,180.43,109.45]
[1753052425248,3.13,180.44,180.43,106.32]
[1753052425548,8.669,180.44,180.43,109.45]
[1753052426249,3.13,180.44,180.43,106.32]
[1753052426544,3.13,180.44,180.43,109.45]
[1753052427148,8.669,180.44,180.43,106.32]
[1753052427553,3.13,180.44,180.41,3.13]
[1753052427757,214.55589208,180.54,180.42,3.13]
[1753052427758,8.6695,180.43,180.42,3.13]
[1753052428051,3.13,180.43,180.4,105.9]
[1753052428241,8.6699,180.42,180.41,3.15]
[1753052428846,8.6699,180.41,180.4,105.9]
[1753052429045,3.13,180.41,180.4,109.05]
[1753052429441,3.13,180.43,180.4,109.05]
[1753052429647,3.13,180.45,180.41,3.15]
[1753052429847,5.5393,180.43,180.41,3.15]
[1753052430048,3.13,180.45,180.4,109.05]
[1753052430853,8.6699,180.41,180.4,105.9]
[1753052431054,3.13,180.41,180.36,109.15]
[1753052431254,3.13,180.39,180.36,109.15]
[1753052431455,8.6711,180.37,180.36,106.0]
[1753052431654,8.6711,180.37,180.36,109.15]
[1753052431854,3.13,180.39,180.36,106.0]
[1753052432054,3.13,180.39,180.38,3.15]
[1753052432553,3.13,180.37,180.36,106.0]
[1753052432756,3.13,180.37,180.36,109.15]
[1753052433056,2.12494118,180.42,180.36,109.15]
[1753052433248,2.12494118,180.42,180.37,3.15]
[1753052433450,3.13,180.4,180.39,3.15]
[1753052433651,8.6702,180.4,180.39,3.15]
[1753052433957,2.12494118,180.42,180.36,109.15]
[1753052434151,8.6708,180.38,180.37,3.15]
[1753052434348,3.13,180.37,180.36,106.0]
[1753052434548,3.13,180.37,180.36,109.15]
[1753052434753,3.13,180.41,180.36,109.15]
[1753052435054,3.13,180.39,180.36,106.0]
[1753052435254,8.6711,180.37,180.36,106.0]
[1753052435455,2.12494118,180.4,180.34,3.15]
[1753052435650,3.13,180.35,180.34,3.15]
[1753052435850,2.12494118,180.38,180.32,108.99]
[1753052436059,3.13,180.33,180.32,108.99]
[1753052436557,3.13,180.34,180.33,3.15]
[1753052437262,5.25494118,180.34,180.26,3.15]
[1753052437564,3.13,180.31,180.28,8.6937]
[1753052437852,3.13,180.33,180.27,107.98494118]
[1753052438058,3.13,180.33,180.31,3.15]
[1753052438253,3.13,180.32,180.27,107.98494118]
[1753052438456,2.12494118,180.34,180.29,3.15]
[1753052438652,3.13,180.3,180.29,3.15]
[1753052438858,3.13,180.3,180.21,3.15]
[1753052439055,2.12494118,180.26,180.21,3.15]
[1753052439357,3.13,180.23,180.21,3.15]
[1753052439553,3.13,180.23,180.19,105.96]
[1753052439554,2.12494118,180.24,180.19,105.96]
[1753052439855,3.13,180.2,180.19,109.11]
[1753052440054,374.60494118,180.36,180.19,109.11]
[1753052440055,2.12494118,180.26,180.2,3.15]
[1753052440354,8.6752,180.24,180.22,3.15]
[1753052440659,3.13,180.23,180.22,3.15]
[1753052441057,2.12494118,180.25,180.2,3.15]
[1753052441251,2.12494118,180.25,180.11,372.48]
[1753052441252,3.13,180.2,180.14,106.02]
[1753052441454,3.13,180.19,180.15,3.15]
[1753052441759,3.13,180.26,180.19,3.15]
[1753052441956,5.5465,180.2,180.16,7.67244118]
[1753052442157,2.12494118,180.19,180.15,3.15]
[1753052442352,3.13,180.16,180.09,3.15]
[1753052442559,3.13,180.16,180.14,3.15]
[1753052442857,3.13,180.17,180.08,105.98]
[1753052443059,3.13,180.14,180.12,3.15]
[1753052443453,3.13,180.13,180.12,3.15]
[1753052443652,3.13,180.15,180.09,2.12494118]
[1753052443852,3.13,180.15,180.1,3.15]
[1753052444049,3.13,180.15,180.11,3.15]
[1753052444253,3.13,180.14,180.12,3.15]
[1753052444456,3.13,180.16,180.1,3.15]
[1753052445461,3.13,180.13,180.08,3.15]
[1753052445854,2.12494118,180.15,180.08,3.15]
[1753052446062,3.13,180.12,180.08,3.15]
[1753052446259,3.13,180.11,180.09,3.15]
[1753052446458,3.13,180.11,180.09,8.6995]
[1753052446658,3.13,180.12,180.09,3.15]
[1753052447063,3.13,180.11,180.09,3.15]
[1753052447262,3.13,180.11,180.1,3.15]
[1753052447954,3.13,180.11,180.06,106.28]
[1753052448159,2.12494118,180.13,180.06,106.28]
[1753052448160,3.13,180.1,180.06,3.15]
[1753052448463,3.13,180.1,180.0,106.2]
[1753052448663,3.13,180.1,180.08,3.15]
[1753052448962,2.12494118,180.13,180.08,3.15]
[1753052448963,3.13,180.09,180.08,3.15]
[1753052449160,3.13,180.12,180.09,3.15]
[1753052449364,372.78,180.24,180.1,5.5492]
[1753052449365,3.13,180.23,180.1,5.5492]
[1753052449664,3.13,180.11,180.05,3.15]
[1753052449861,3.13,180.17,180.0,3.15]
[1753052450066,5.25494118,180.05,180.0,3.15]
[1753052450458,5.25494118,180.05,179.99,478.84]
[1753052450658,2.12494118,180.05,180.0,3.15]
[1753052450963,3.13,180.01,179.99,372.56]
[1753052451265,3.13,180.01,179.94,3.15]
[1753052451464,3.13,179.98,179.92,3.15]
[1753052451662,3.48628727,179.99,179.93,5.5544]
[1753052451969,3.13,179.98,179.91,106.32]
[1753052452166,3.13,179.98,179.92,3.15]
[1753052452360,3.13,179.97,179.93,3.15]
[1753052452565,0.0357395,179.98,179.93,3.15]
[1753052453168,3.13,180.05,179.93,12.19628727]
[1753052453476,3.13,180.09,180.0,3.15]
[1753052453663,3.13,180.04,180.01,115.3822]
[1753052454065,3.13,180.04,180.02,3.15]
[1753052454266,5.5516,180.03,180.02,3.15]
[1753052454462,3.48628727,180.04,179.89,372.88]
[1753052454666,0.9668278,180.09,180.01,0.03995941]
[1753052454667,3.13,180.03,180.01,0.03995941]
[1753052454869,3.13,179.97,179.95,3.15]
[1753052455269,3.13,179.99,179.94,3.15]
[1753052455470,3.13,179.98,179.95,3.15]
[1753052455768,3.13,179.98,179.96,3.15]
[1753052456672,3.13,179.97,179.96,3.15]
[1753052457169,3.13,179.98,179.94,3.15]
[1753052457470,3.13,179.97,179.95,3.15]
[1753052457676,3.13,179.98,179.93,109.97]
[1753052457871,3.13,179.98,179.93,3.15]
[1753052458070,3.13,179.98,179.92,106.78]
[1753052458273,3.13,179.98,179.9,2.97]
[1753052458668,3.13,179.98,179.9,109.77]
[1753052458868,3.07,179.95,179.9,109.77]
[1753052459173,0.04224947,179.96,179.9,106.8]
[1753052459468,3.07,179.95,179.91,2.97]
[1753052459668,0.04224947,179.96,179.93,2.97]
[1753052460062,0.04224947,179.96,179.91,2.97]
[1753052460063,8.6248,179.93,179.91,2.97]
[1753052460262,3.07,179.95,179.9,2.97]
[1753052460466,3.07,179.93,179.83,2.97]
[1753052460674,3.07,179.93,179.79,373.16]
[1753052460675,3.07,179.93,179.84,109.97]
[1753052460871,3.07,179.93,179.85,2.97]
[1753052461264,0.04047887,179.9,179.85,2.97]
[1753052461473,0.04047887,179.9,179.88,2.97]
[1753052461663,3.07,179.95,179.89,110.50628727]
[1753052461868,3.07,180.0,179.94,2.97]
[1753052462070,3.07,180.0,179.95,2.97]
[1753052462263,3.07,180.0,179.96,3.48628727]
[1753052462464,0.03906516,179.99,179.98,2.97]
[1753052462667,4.0368278,180.09,179.99,2.97]
[1753052462971,7.18626886,180.08,180.02,3.48628727]
[1753052463166,0.9668278,180.09,180.02,3.48628727]
[1753052463371,3.07,180.1,180.08,2.97]
[1753052463572,4.11644533,180.09,180.08,2.97]
[1753052463969,7.18644533,180.09,180.06,8.5206]
[1753052464171,4.11644533,180.08,180.07,3.0118404]
[1753052464477,4.11644533,180.08,180.07,8.5622404]
[1753052464773,4.11644533,180.08,180.07,3.52812767]
[1753052464968,4.11644533,180.08,180.07,0.0418404]
[1753052464969,4.11709557,180.08,180.07,0.0418404]
[1753052465181,4.11709557,180.1,180.07,6.49812767]
[1753052465370,4.11709557,180.09,180.07,3.52812767]
[1753052465574,3.07,180.11,180.08,8.5201]
[1753052465865,4.11876388,180.1,180.08,2.97]
[1753052466071,4.11876388,180.09,180.08,8.5201]
[1753052466465,4.03650558,180.16,180.08,2.97]
[1753052466668,4.12052547,180.15,180.13,2.97]
[1753052466868,3.07,180.15,180.13,2.97]
[1753052467073,3.07,180.15,180.12,2.97]
[1753052467273,3.07,180.15,180.12,8.5187]
[1753052467476,3.07,180.19,180.13,2.97]
[1753052467974,3.07,180.17,180.13,2.97]
[1753052468276,3.07,180.2,180.13,2.97]
[1753052468778,3.07,180.18,180.15,2.97]
[1753052468973,3.07,180.17,180.15,2.97]
[1753052469172,3.07,180.19,180.16,8.5176]
[1753052469476,3.07,180.19,180.17,2.97]
[1753052469771,3.07,180.21,180.18,2.97]
[1753052469974,3.07,180.26,180.17,2.97]
[1753052470182,3.07,180.26,180.2,3.48628727]
[1753052470477,3.07,180.23,180.21,2.97]
[1753052471677,3.07,180.26,180.24,2.97]
[1753052471868,3.07,180.25,180.14,107.18]
[1753052472071,3.07,180.25,180.21,3.48628727]
[1753052472267,3.07,180.25,180.23,2.97]
[1753052474381,5.5451,180.24,180.23,2.97]
[1753052475373,3.07,180.27,180.23,2.97]
[1753052475571,3.07,180.26,180.24,2.97]
[1753052476282,3.07,180.25,180.21,3.48628727]
[1753052476471,3.07,180.25,180.22,2.97]
[1753052476982,3.07,180.26,180.18,2.97]
[1753052477474,3.48628727,180.27,180.18,3.48628727]
[1753052477675,3.07,180.23,180.2,2.97]
[1753052477875,3.48628727,180.27,180.2,2.97]
[1753052478073,3.48628727,180.27,180.07,3.48628727]
[1753052478074,3.07,180.22,180.14,2.97]
[1753052478279,3.07,180.22,180.15,2.97]
[1753052478681,3.07,180.22,180.18,3.48628727]
[1753052478876,214.79398088,180.29,180.2,3.48628727]
[1753052479076,214.79398088,180.29,180.21,2.97]
[1753052479281,3.07,180.23,180.21,2.97]
[1753052479784,8.6155,180.23,180.21,2.97]
[1753052480082,3.07,180.27,180.18,6.45628727]
[1753052480282,3.07,180.27,180.18,2.97]
[1753052480576,3.07,180.21,180.18,2.97]
[1753052480780,3.07,180.21,180.19,2.97]
[1753052481671,3.07,180.27,180.19,2.97]
[1753052481875,217.86398088,180.29,180.23,2.97]
[1753052482077,5.5442,180.27,180.23,3.48628727]
[1753052482281,3.07,180.27,180.25,2.97]
[1753052482482,3.07,180.27,180.26,2.97]
[1753052482682,3.07,180.29,180.25,3.48628727]
[1753052482982,3.48628727,180.35,180.18,3.48628727]
[1753052482983,3.07,180.35,180.28,2.97]
[1753052483182,0.96550002,180.34,180.28,2.97]
[1753052483378,3.07,180.32,180.27,3.48628727]
[1753052483577,3.07,180.32,180.3,2.97]
[1753052483979,8.6127,180.32,180.3,2.97]
[1753052484678,3.07,180.32,180.3,2.97]
[1753052484880,3.48628727,180.38,180.31,2.97]
[1753052485078,3.07,180.37,180.31,2.97]
[1753052485280,8.6121,180.34,180.32,2.97]
[1753052485480,3.07,180.34,180.32,2.97]
[1753052487382,3.48628727,180.42,180.31,3.48628727]
[1753052487584,3.07,180.41,180.32,2.97]
[1753052487779,5.5413,180.37,180.31,3.48628727]
[1753052487983,0.96505824,180.41,180.33,2.97]
[1753052488285,3.05,180.35,180.33,2.97]
[1753052488883,5.5413,180.37,180.33,3.48628727]
[1753052489183,5.5413,180.37,180.35,3.05]
[1753052490579,5.5413,180.37,180.33,9.02858727]
[1753052490580,8.5909,180.38,180.36,3.05]
[1753052490979,3.05,180.38,180.36,3.05]
[1753052491180,5.5411,180.37,180.36,3.05]
[1753052491380,3.05,180.42,180.34,3.05]
[1753052491778,5.5412,180.37,180.33,9.02858727]
[1753052491973,3.05,180.4,180.22,3.05]
[1753052492185,3.05,180.4,180.31,3.05]
[1753052492486,3.05,180.35,180.33,3.05]
[1753052492887,8.592,180.35,180.33,3.05]
[1753052493587,8.5921,180.34,180.33,3.05]
[1753052494090,3.05,180.32,180.19,372.94]
[1753052494285,3.05,180.38,180.29,3.05]
[1753052494486,5.5424,180.33,180.29,3.05]
[1753052494687,8.5924,180.33,180.31,3.05]
[1753052495087,3.05,180.32,180.29,3.05]
[1753052495287,3.05,180.33,180.26,3.05]
[1753052495482,3.05,180.31,180.22,3.48628727]
[1753052495687,5.5439,180.28,180.25,5.5448]
[1753052495889,3.48628727,180.32,180.26,3.05]
[1753052496286,3.05,180.33,180.26,3.48628727]
[1753052496484,3.05,180.33,180.27,3.05]
[1753052496784,3.05,180.33,180.28,5.5438]
[1753052496785,8.5926,180.33,180.28,5.5438]
[1753052496993,3.05,180.34,180.28,3.05]
[1753052497384,5.5432,180.31,180.28,3.05]
[1753052497583,3.05,180.3,180.28,3.05]
[1753052498484,3.05,180.35,180.29,3.05]
[1753052499080,3.05,180.32,180.3,3.05]
[1753052500495,3.05,180.37,180.3,3.48628727]
[1753052500692,3.05,180.37,180.33,3.05]
[1753052500898,3.05,180.38,180.36,3.05]
[1753052501989,3.05,180.38,180.28,3.48628727]
[1753052502190,3.05,180.38,180.29,3.05]
[1753052502392,5.5419,180.35,180.31,5.5429]
[1753052502706,3.05,180.34,180.32,3.05]
[1753052502989,5.5421,180.34,180.3,8.5932]
[1753052503191,3.05,180.33,180.29,3.05]
[1753052503396,3.05,180.33,180.31,3.05]
[1753052503594,3.05,180.33,180.31,8.593]
[1753052504096,3.05,180.33,180.25,3.48628727]
[1753052504291,3.05,180.33,180.28,8.5937]
[1753052504691,5.5428,180.32,180.28,8.5937]
[1753052504893,3.05,180.31,180.29,3.05]
[1753052505098,3.48628727,180.35,180.27,8.5941]
[1753052505297,5.5432,180.31,180.27,8.5941]
[1753052505487,3.05,180.3,180.27,8.5941]
[1753052505691,3.05,180.34,180.24,3.05]
[1753052505891,3.05,180.28,180.22,3.05]
[1753052506291,5.5443,180.27,180.22,3.05]
[1753052506599,3.05,180.26,180.2,3.05]
[1753052506997,3.05,180.23,180.22,3.05]
[1753052507297,3.05,180.28,180.2,3.05]
[1753052507496,3.05,180.23,180.21,3.05]
[1753052507791,3.05,180.23,180.19,372.94]
[1753052507997,5.5447,180.26,180.22,5.5457]
[1753052508297,3.05,180.25,180.23,3.05]
[1753052508597,3.05,180.3,180.24,3.05]
[1753052508992,3.05,180.26,180.24,8.5951]
[1753052509192,3.05,180.26,180.24,3.05]
[1753052509393,3.05,180.3,180.21,3.05]
[1753052509687,3.05,180.24,180.22,8.5957]
[1753052509893,3.05,180.24,180.23,3.05]
[1753052510300,3.48628727,180.31,180.23,3.05]
[1753052510501,3.05,180.25,180.23,3.05]
[1753052510794,3.05,180.24,180.21,8.596]
[1753052510992,3.05,180.27,180.19,375.99]
[1753052511394,5.5453,180.24,180.2,5.5463]
[1753052511592,3.05,180.25,180.2,3.05]
[1753052511997,8.5952,180.24,180.22,3.05]
[1753052512700,3.05,180.23,180.22,3.05]
[1753052512902,3.05,180.24,180.22,5.5458]
[1753052513201,3.05,180.27,180.22,3.05]
[1753052513498,5.5439,180.28,180.24,5.5449]
[1753052513695,5.5439,180.28,180.21,3.48628727]
[1753052513696,3.05,180.28,180.26,3.05]
[1753052513894,8.5942,180.27,180.21,3.48628727]
[1753052514102,3.05,180.26,180.24,3.05]
[1753052514396,3.48628727,180.33,180.24,3.05]
[1753052514397,3.05,180.32,180.24,3.05]
[1753052514603,3.05,180.26,180.24,3.05]
[1753052514998,3.05,180.3,180.2,3.05]
[1753052515200,3.48628727,180.25,180.2,3.05]
[1753052515498,3.05,180.24,180.18,3.05]
[1753052515698,5.5461,180.21,180.16,3.05]
[1753052515899,3.48628727,180.22,180.16,3.05]
[1753052516099,3.05,180.21,180.16,3.05]
[1753052516297,3.05,180.21,180.13,150.57410002]
[1753052516503,3.05,180.21,180.14,3.05]
[1753052517003,3.05,180.21,180.13,147.52410002]
[1753052517004,3.05,180.21,180.15,3.05]
[1753052517505,3.05,180.2,180.14,3.05]
[1753052517700,3.05,180.23,180.14,6.53628727]
[1753052517897,8.5959,180.22,180.19,3.05]
[1753052518093,3.05,180.22,180.19,3.05]
[1753052518297,3.19,180.22,180.19,3.05]
[1753052518506,3.19,180.21,180.19,3.05]
[1753052518904,8.7361,180.21,180.19,3.05]
[1753052520101,8.7364,180.2,180.16,5.5475]
[1753052520303,3.19,180.22,180.15,3.24]
[1753052521104,3.19,180.16,180.15,3.24]
[1753052521304,3.19,180.16,180.14,3.24]
[1753052521505,3.19,180.14,180.09,5.5495]
[1753052521807,3.19,180.14,180.05,3.24]
[1753052522003,3.19,180.12,180.05,3.24]
[1753052522206,3.19,180.08,180.06,3.24]
[1753052522802,3.19,180.09,180.02,105.9]
[1753052523305,3.19,180.08,180.02,3.24]
[1753052523607,3.19,180.06,180.03,3.24]
[1753052523809,3.19,180.08,180.03,3.24]
[1753052524302,8.7416,180.03,180.0,3.24]
[1753052524506,3.19,180.03,180.01,3.24]
[1753052525208,3.19,180.08,180.0,3.24]
[1753052525409,8.7406,180.07,180.03,3.24]
[1753052525614,3.48628727,180.18,180.04,3.24]
[1753052525615,3.19,180.1,180.04,3.24]
[1753052526112,3.19,180.1,180.05,3.24]
[1753052526309,3.19,180.08,180.04,109.18]
[1753052526514,3.19,180.07,180.04,109.18]
[1753052526916,3.48628727,180.11,180.04,3.24]
[1753052527212,3.19,180.07,180.02,105.92]
[1753052527415,5.5499,180.09,180.05,5.5509]
[1753052527615,8.7399,180.09,180.03,3.24]
[1753052527811,3.19,180.09,180.03,3.24]
[1753052528011,3.19,180.09,180.05,5.5508]
[1753052528318,3.19,180.09,180.06,3.24]
[1753052528509,3.48628727,180.11,180.02,105.92]
[1753052528717,3.19,180.11,180.03,3.24]
[1753052529116,5.5498,180.09,180.04,5.5512]
[1753052529312,8.7398,180.09,180.05,3.24]
[1753052529508,3.48628727,180.12,180.06,3.24]
[1753052529713,3.19,180.11,180.03,3.24]
[1753052529911,3.19,180.11,180.06,3.48628727]
[1753052530107,3.48628727,180.19,180.09,3.24]
[1753052530315,3.19,180.16,180.14,3.24]
[1753052530706,8.7379,180.15,180.12,3.24]
[1753052530912,3.19,180.13,180.09,3.24]
[1753052531213,3.48628727,180.16,180.07,5.5504]
[1753052531516,3.19,180.12,180.06,3.24]
[1753052531713,5.55,180.09,180.06,3.24]
[1753052532018,3.19,180.08,180.06,3.24]
[1753052532517,8.7396,180.1,180.07,3.24]
[1753052532816,3.19,180.09,180.07,3.24]
[1753052533218,3.19,180.12,180.08,3.24]
[1753052533417,3.19,180.12,180.05,3.24]
[1753052533619,5.5498,180.09,180.05,3.24]
[1753052533817,3.19,180.11,180.08,3.24]
[1753052534021,3.19,180.1,180.08,3.24]
[1753052534522,3.19,180.15,180.07,3.24]
[1753052534718,3.19,180.15,180.08,3.24]
[1753052535015,3.48628727,180.18,180.07,3.48628727]
[1753052535224,3.19,180.13,180.08,3.24]
[1753052535517,11.089,180.27,180.12,3.24]
[1753052535518,3.48628727,180.22,180.12,3.24]
[1753052535717,3.19,180.21,180.13,3.24]
[1753052536016,3.19,180.21,180.15,3.24]
[1753052536216,3.19,180.24,180.15,3.48628727]
[1753052536416,3.19,180.24,180.16,3.24]
[1753052536624,5.5463,180.21,180.16,3.24]
[1753052536821,3.19,180.23,180.16,3.24]
[1753052537017,5.5473,180.17,180.14,3.24]
[1753052537218,3.19,180.16,180.14,3.24]
[1753052537426,3.19,180.22,180.15,3.24]
[1753052537627,3.19,180.18,180.16,3.24]
[1753052537915,3.19,180.16,180.04,3.24]
[1753052538119,3.19,180.16,180.08,3.24]
[1753052538316,3.48628727,180.15,180.08,3.24]
[1753052538513,3.19,180.14,180.08,109.28]
[1753052538715,5.5492,180.11,180.08,109.28]
[1753052538917,3.19,180.1,180.08,109.28]
[1753052539115,3.19,180.14,180.08,109.28]
[1753052539311,5.5491,180.12,180.08,111.5899]
[1753052539516,3.19,180.14,180.08,106.04]
[1753052540414,3.48628727,180.15,180.08,106.04]
[1753052540613,3.19,180.09,180.08,106.04]
[1753052540818,3.19,180.08,180.05,3.24]
[1753052541020,8.7403,180.08,180.05,3.24]
[1753052541226,3.19,180.07,180.05,3.24]
[1753052541526,3.19,180.07,180.03,109.52628727]
[1753052541527,8.7411,180.05,180.03,109.28]
[1753052541825,3.19,180.04,180.03,106.04]
[1753052542028,3.48628727,180.09,180.04,3.24]
[1753052542029,5.5507,180.06,180.04,3.24]
[1753052542320,3.19,180.17,180.06,3.24]
[1753052542526,3.19,180.17,180.09,3.24]
[1753052542725,3.19,180.17,180.1,6.72628727]
[1753052542914,3.19,180.17,180.11,3.24]
[1753052543117,3.19,180.16,180.13,3.24]
[1753052543421,3.19,180.22,180.13,3.24]
[1753052543619,5.5478,180.16,180.13,3.24]
[1753052543821,3.19,180.16,180.14,3.24]
[1753052544417,3.48628727,180.2,180.13,0.03977009]
[1753052544618,3.19,180.19,180.13,0.03977009]
[1753052544820,5.5484,180.14,180.1,5.5492]
[1753052545026,5.5484,180.14,180.12,3.24]
[1753052545227,8.7384,180.14,180.12,3.24]
[1753052545427,3.48628727,180.2,180.09,110.10628727]
[1753052545721,3.19,180.19,180.09,113.34628727]
[1753052546228,3.19,180.17,180.09,109.86]
[1753052546829,5.549,180.12,180.09,109.86]
[1753052547126,3.19,180.17,180.1,3.24]
[1753052547327,3.19,180.17,180.12,3.24]
[1753052547527,3.19,180.16,180.13,3.24]
[1753052547722,3.19,180.19,180.15,3.24]
[1753052547919,5.5473,180.17,180.15,3.24]
[1753052548227,3.04,180.23,180.14,3.05]
[1753052548526,3.48628727,180.24,180.14,3.05]